fUSD/lending_fUSD_20251113
["ID","MTS","AMOUNT","RATE_DAILY","PERIOD"]
[393792366,1762993562216,-180.43313349,0.00018,2]
[393792367,1762993564921,-234.22842331,0.000179,2]
[393792368,1762993566554,-206.3133218,0.000179,2]
[393792369,1762993571024,-319.57235353,0.000179,2]
[393792370,1762993577001,-165.11005202,0.000179,2]
[393792371,1762993577028,-36.1132989,0.00017999,2]
[393792372,1762993578557,-238.66255044,0.00017999,2]
[393792374,1762993582461,-151.0,0.00017997,2]
[393792375,1762993582486,-25.22415066,0.00017999,2]
[393792376,1762993582514,-197.47643844,0.00018,2]
[393792378,1762993587350,-166.21358294,0.00018,2]
[393792379,1762993590549,-201.53004459,0.00018,2]
[393792380,1762993592756,-186.236175,0.00018,2]
[393792381,1762993594561,-180.68188177,0.00017999,2]
[393792382,1762993596665,-303.22105969,0.00017999,2]
[393792383,1762993600167,-16.09705854,0.00017999,2]
[393792384,1762993600191,-180.87637885,0.00017999,2]
[393792385,1762993602220,-194.58939095,0.00017999,2]
[393792386,1762993604534,-124.5342302,0.00017999,2]
[393792387,1762993604557,-230.59473671,0.00017999,2]
[393792388,1762993606702,-198.1296824,0.00017999,2]
[393792389,1762993608397,-71.27558089,0.00017999,2]
[393792390,1762993608421,-119.83121443,0.00017999,2]
[393792391,1762993611404,-181.52642324,0.00017999,2]
[393792392,1762993612337,5000.0,0.000162,5]
[393792393,1762993616436,-198.64236233,0.00017999,2]
[393792394,1762993616461,-207.64977767,0.00017999,2]
[393792395,1762993616484,-98.06115776,0.00017999,2]
[393792396,1762993618443,-299.11693874,0.00017999,2]
[393792397,1762993619726,1517.64,0.000153,2]
[393792398,1762993620065,-46.3774583,0.00017999,2]
[393792399,1762993620091,-206.65688799,0.00017999,2]
[393792400,1762993621612,-184.05464623,0.00017999,2]
[393792401,1762993623451,193.03674943,0.00015,2]
[393792402,1762993623747,-109.28846578,0.00017999,2]
[393792403,1762993623771,-284.2455477,0.00017999,2]
[393792404,1762993626903,-215.7544523,0.00017999,2]
[393792405,1762993626928,-94.34892132,0.00017999,2]
[393792406,1762993628583,-253.02582709,0.00017999,2]
[393792407,1762993628723,1378.304297,7.945e-05,2]
[393792408,1762993631224,-152.62525159,0.00017999,2]
[393792409,1762993631250,-127.00637367,0.00017999,2]
[393792410,1762993634708,-128.43940834,0.00017999,2]
[393792411,1762993634732,-53.83848881,0.00017999,2]
[393792413,1762993637406,-200.0,0.000173,6]
[393792414,1762993638992,-170.55261278,0.000173,6]
[393792415,1762993642538,-129.44738722,0.000173,6]
[393792416,1762993642569,-65.55261294,0.000174,6]
[393792417,1762993644770,-154.03410336,0.000174,6]
[393792418,1762993648294,-157.0,0.000174,6]
[393792420,1762993651585,-154.13568935,0.000174,6]
[393792421,1762993654905,-193.0,0.000174,6]
[393792422,1762993657783,-276.27759435,0.000174,6]
[393792423,1762993657807,-134.57164898,0.000175,6]
[393792424,1762993659184,-219.60181282,0.000175,6]
[393792426,1762993662612,-177.11038753,0.000175,6]
[393792427,1762993664880,-163.53962654,0.000175,6]
[393792428,1762993667680,-157.97344633,0.000175,6]
[393792429,1762993670016,-244.1648825,0.000175,6]
[393792430,1762993670365,1911.02895357,0.00017,2]
[393792431,1762993670390,10000.01,0.00017,2]
[393792432,1762993670415,10000.01,0.00017,2]
[393792433,1762993670439,10000.01,0.00017,2]
[393792434,1762993670462,2006.9735921,0.00017,2]
[393792436,1762993672223,-366.42155809,0.00017,2]
[393792437,1762993674053,-10000.01,0.00017,2]
[393792438,1762993674243,-10000.01,0.00017,2]
[393792439,1762993674525,-10000.01,0.00017,2]
[393792440,1762993674642,-10000.01,0.00017,2]
[393792441,1762993674791,-193.05086077,0.00017,2]
[393792442,1762993674817,-10000.01,0.00017,2]
[393792443,1762993674881,-10000.01,0.00017,2]
[393792444,1762993675005,-10000.01,0.00017,2]
[393792445,1762993676961,-10000.01,0.00017,2]
[393792446,1762993677062,-10000.01,0.00017,2]
[393792447,1762993677862,-224.40333237,0.00017,2]
[393792448,1762993680082,-10000.01,0.00017,2]
[393792449,1762993680256,-4575.78143063,0.00017,2]
[393792450,1762993680288,-403.0381953,0.000175,6]
[393792451,1762993680307,-2000.0,0.000176,6]
[393792452,1762993680316,-2575.78143063,0.000177,6]
[393792453,1762993680327,-24.21856937,0.000177,6]
[393792454,1762993680336,-378.81962593,0.000178,6]
[393792455,1762993680351,-42.37074814,0.000178,6]
[393792456,1762993680394,-78.80962593,0.000178,6]
[393792457,1762993680423,-500.0,0.000179,6]
[393792458,1762993680452,-1200.0,0.00017998,2]
[393792459,1762993680482,-446.16151119,0.00017999,2]
[393792460,1762993680512,-500.0,0.00017999,2]
[393792461,1762993680543,-500.0,0.00017999,2]
[393792462,1762993680572,-500.0,0.00017999,2]
[393792463,1762993680606,-500.0,0.00017999,2]
[393792464,1762993680635,-318.33264924,0.00017999,2]
[393792465,1762993680667,-413.40242728,0.00017999,2]
[393792466,1762993680686,-78.80962593,0.00017999,2]
[393792467,1762993680699,-7.78794679,0.00017999,2]
[393792468,1762993680710,-492.21205321,0.00017999,2]
[393792469,1762993680722,-7.78794679,0.00017999,2]
[393792470,1762993680732,-500.0,0.00017999,2]
[393792471,1762993680742,-500.0,0.00017999,2]
[393792472,1762993680751,-192.21205321,0.00017999,2]
[393792473,1762993680763,-307.78794679,0.00017999,2]
[393792474,1762993680773,-138.3735644,0.00017999,2]
[393792475,1762993680785,-361.6264356,0.00017999,2]
[393792476,1762993680795,-138.3735644,0.00017999,2]
[393792477,1762993680831,-361.6264356,0.00017999,2]
[393792478,1762993680870,-500.0,0.00017999,2]
[393792479,1762993680900,-301.48896148,0.00017999,2]
[393792480,1762993680929,-500.0,0.00017999,2]
[393792481,1762993680960,-616.64187407,0.00017999,2]
[393792482,1762993681142,-572.85013495,0.00017999,2]
[393792483,1762993681190,-500.0,0.00017999,2]
[393792484,1762993681228,-500.0,0.00017999,2]
[393792485,1762993681260,-500.0,0.00017999,2]
[393792486,1762993681297,-500.0,0.00017999,2]
[393792487,1762993681319,-500.0,0.00017999,2]
[393792488,1762993681331,-500.0,0.00017999,2]
[393792489,1762993681348,-500.0,0.00017999,2]
[393792490,1762993681369,-318.33264924,0.00017999,2]
[393792491,1762993681389,-181.66735076,0.00017999,2]
[393792492,1762993681399,-318.33264924,0.00017999,2]
[393792493,1762993681440,-181.66735076,0.00017999,2]
[393792494,1762993681477,-500.0,0.00017999,2]
[393792495,1762993681515,-500.0,0.00017999,2]
[393792496,1762993681552,-500.0,0.00017999,2]
[393792497,1762993681590,-500.0,0.00017999,2]
[393792498,1762993681630,-500.0,0.00017999,2]
[393792499,1762993681667,-500.0,0.00017999,2]
[393792500,1762993681704,-500.0,0.00017999,2]
[393792501,1762993681742,-500.0,0.00017999,2]
[393792502,1762993681778,-500.0,0.00017999,2]
[393792503,1762993681815,-136.67529848,0.00017999,2]
[393792504,1762993681851,-224.79286983,0.00017999,2]
[393792505,1762993681897,-138.53183169,0.00017999,2]
[393792506,1762993681933,-500.0,0.00017999,2]
[393792507,1762993681971,-500.0,0.00017999,2]
[393792508,1762993682013,-500.0,0.00017999,2]
[393792509,1762993682052,-500.0,0.00017999,2]
[393792510,1762993682091,-500.0,0.00017999,2]
[393792511,1762993682129,-500.0,0.00017999,2]
[393792512,1762993682169,-500.0,0.00017999,2]
[393792513,1762993682207,-471.32632808,0.00017999,2]
[393792514,1762993682244,-500.0,0.00017999,2]
[393792515,1762993682282,-280.29368046,0.00017999,2]
[393792516,1762993682302,-219.70631954,0.00017999,2]
[393792517,1762993682312,-141.92011606,0.00017999,2]
[393792518,1762993682324,-358.07988394,0.00017999,2]
[393792519,1762993682334,-141.92011606,0.00017999,2]
[393792520,1762993682370,-301.48896148,0.00017999,2]
[393792521,1762993682381,-56.59092246,0.00017999,2]
[393792522,1762993682395,-443.40907754,0.00017999,2]
[393792523,1762993682437,-56.59092246,0.00017999,2]
[393792524,1762993682477,-500.0,0.00017999,2]
[393792525,1762993682517,-500.0,0.00017999,2]
[393792526,1762993682556,-500.0,0.00017999,2]
[393792527,1762993682594,-500.0,0.00017999,2]
[393792528,1762993682625,-500.0,0.00017999,2]
[393792529,1762993682658,-500.0,0.00017999,2]
[393792530,1762993682690,-432.87181114,0.00017999,2]
[393792531,1762993682728,-1042.30660055,0.00017999,2]
[393792532,1762993682749,-616.64187407,0.00017999,2]
[393792533,1762993682766,-425.66472648,0.00017999,2]
[393792534,1762993682776,-147.18540847,0.00017999,2]
[393792535,1762993682820,-895.12119208,0.00017999,2]
[393792536,1762993682858,-1042.30660055,0.00017999,2]
[393792537,1762993682895,-1042.30660055,0.00017999,2]
[393792538,1762993682931,-1042.30660055,0.00017999,2]
[393792539,1762993682969,-913.62141199,0.00017999,2]
[393792540,1762993682989,-128.68518856,0.00017999,2]
[393792541,1762993682999,-371.31481144,0.00017999,2]
[393792542,1762993683011,-500.0,0.00017999,2]
[393792543,1762993683028,-170.99178911,0.00017999,2]
[393792544,1762993683039,-329.00821089,0.00017999,2]
[393792545,1762993683052,-500.0,0.00017999,2]
[393792546,1762993683072,-213.29838966,0.00017999,2]
[393792547,1762993683082,-81.49679814,0.00017999,2]
[393792548,1762993683112,-181.66735076,0.00017999,2]
[393792549,1762993683129,-500.0,0.00017999,2]
[393792550,1762993683148,-279.14245165,0.00017999,2]
[393792551,1762993683160,-220.85754835,0.00017999,2]
[393792552,1762993683194,-300.0,0.00017998,2]
[393792553,1762993683206,-200.0,0.00017999,2]
[393792554,1762993683219,-500.0,0.00017999,2]
[393792555,1762993683232,-121.4490522,0.00017999,2]
[393792556,1762993683243,-378.5509478,0.00017999,2]
[393792557,1762993683257,-500.0,0.00017999,2]
[393792558,1762993683305,-163.75565275,0.00017999,2]
[393792559,1762993683315,-336.24434725,0.00017999,2]
[393792560,1762993683328,-500.0,0.00017999,2]
[393792561,1762993683347,-206.0622533,0.00017999,2]
[393792562,1762993683358,-293.9377467,0.00017999,2]
[393792563,1762993683377,-500.0,0.00017999,2]
[393792564,1762993683392,-138.53183169,0.00017999,2]
[393792565,1762993683404,-109.83702216,0.00017999,2]
[393792566,1762993683414,-390.16297784,0.00017999,2]
[393792567,1762993683426,-500.0,0.00017999,2]
[393792568,1762993683438,-152.14362271,0.00017999,2]
[393792569,1762993683448,-347.85637729,0.00017999,2]
[393792570,1762993683464,-500.0,0.00017999,2]
[393792571,1762993683477,-194.45022326,0.00017999,2]
[393792572,1762993683487,-305.54977674,0.00017999,2]
[393792573,1762993683498,-500.0,0.00017999,2]
[393792574,1762993683514,-236.75682381,0.00017999,2]
[393792575,1762993683523,-263.24317619,0.00017999,2]
[393792576,1762993683534,-471.32632808,0.00017999,2]
[393792577,1762993683546,-307.73709628,0.00017999,2]
[393792578,1762993683554,-192.26290372,0.00017999,2]
[393792579,1762993683571,-500.0,0.00017999,2]
[393792580,1762993683601,-56.59092246,0.00017999,2]
[393792581,1762993683612,-293.45277437,0.00017999,2]
[393792582,1762993683623,-206.54722563,0.00017999,2]
[393792583,1762993683635,-500.0,0.00017999,2]
[393792584,1762993683650,-335.75937492,0.00017999,2]
[393792585,1762993683659,-164.24062508,0.00017999,2]
[393792586,1762993683678,-500.0,0.00017999,2]
[393792587,1762993683704,-378.06597547,0.00017999,2]
[393792588,1762993683713,-121.93402453,0.00017999,2]
[393792589,1762993683725,-500.0,0.00017999,2]
[393792590,1762993683737,-420.37257602,0.00017999,2]
[393792591,1762993683747,-12.49923512,0.00017999,2]
[393792592,1762993683759,-1029.80736543,0.00017999,2]
[393792593,1762993683769,-12.49923512,0.00017999,2]
[393792594,1762993683781,-936.4713317,0.00017999,2]
[393792595,1762993683801,-93.33603373,0.00017999,2]
[393792596,1762993683810,-801.78515835,0.00017999,2]
[393792597,1762993683827,-240.5214422,0.00017999,2]
[393792598,1762993683837,-801.78515835,0.00017999,2]
[393792599,1762993683849,-240.5214422,0.00017999,2]
[393792600,1762993684057,-801.78515835,0.00017999,2]
[393792601,1762993684070,-240.5214422,0.00017999,2]
[393792602,1762993684080,-801.78515835,0.00017999,2]
[393792603,1762993684094,-240.5214422,0.00017999,2]
[393792604,1762993684104,-801.78515835,0.00017999,2]
[393792605,1762993684226,-182.54662167,0.00017999,2]
[393792606,1762993688233,5000.0,7.945e-05,2]
[393792607,1762993688269,3138.839525,7.945e-05,2]
[393792608,1762993689072,250.0,8.74e-05,2]
[393792620,1762993714671,46611.160475,0.00015,3]
[393792621,1762993714706,5000.0,0.00015,3]
[393792630,1762993717726,-187.04622063,0.00015,3]
[393792633,1762993722278,-203.82018473,0.00015,3]
[393792634,1762993725910,-190.19416215,0.00015,3]
[393792635,1762993728031,-227.84271025,0.00015,3]
[393792636,1762993730209,-223.13360918,0.00015,3]
[393792637,1762993734052,-206.43443692,0.00015,3]
[393792638,1762993736218,-296.96322353,0.00015,3]
[393792639,1762993737821,-195.0,0.00015,3]
[393792640,1762993739591,-254.02100593,0.00015,3]
[393792641,1762993741768,-177.49496754,0.00014999,2]
[393792642,1762993744565,-122.50503246,0.00014999,2]
[393792643,1762993744589,-619.12667228,0.00015,3]
[393792644,1762993747616,-196.20556571,0.00015,3]
[393792645,1762993750023,-1567.6559603,0.00015,3]
[393792646,1762993750103,-4578.24934,0.00015,3]
[393792647,1762993751585,-218.4,0.00015,3]
[393792648,1762993753633,-166.66,0.00015,3]
[393792649,1762993755775,-172.67096414,0.00015,3]
[393792650,1762993759283,-193.0,0.00015,3]
[393792651,1762993761526,-214.1459639,0.00015,3]
[393792652,1762993763659,-300.0,0.00015,3]
[393792653,1762993765875,-179.03468423,0.00015,3]
[393792654,1762993767408,-200.57763593,0.00015,3]
[393792655,1762993771470,-195.0,0.00015,3]
[393792656,1762993772882,-305.15546868,0.00015,3]
[393792657,1762993776731,-358.68384251,0.00015,3]
[393792658,1762993779415,-157.27830987,0.00015,3]
[393792659,1762993782578,-217.72040068,0.00015,3]
[393792660,1762993786161,-255.1647464,0.00014985,2]
[393792661,1762993787873,-314.06323891,0.00014985,2]
[393792662,1762993790127,-245.32,0.00014985,2]
[393792663,1762993793398,-174.48774531,0.00014985,2]
[393792664,1762993797400,-195.0,0.00014985,2]
[393792665,1762993799520,-165.24778131,0.00014985,2]
[393792666,1762993801663,-185.92881699,0.00014985,2]
[393792667,1762993804217,-193.03674943,0.00014985,2]
[393792668,1762993806597,-193.0,0.00014985,2]
[393792669,1762993809407,-218.4,0.00014985,2]
[393792670,1762993811667,-19.12406192,0.00014985,2]
[393792671,1762993811691,-133.74593808,0.00014999,2]
[393792672,1762993813414,-200.0,0.00014999,2]
[393792673,1762993815026,-195.0,0.00014999,2]
[393792674,1762993817825,-300.0,0.00014999,2]
[393792675,1762993820593,-218.4,0.00014999,2]
[393792676,1762993822123,-152.85406192,0.00014999,2]
[393792677,1762993822147,-111.44420937,0.00014999,2]
[393792678,1762993825276,-151.86366074,0.00014999,2]
[393792679,1762993826867,-36.69212989,0.00014999,2]
[393792680,1762993826892,-300.0,0.00014999,2]
[393792681,1762993826919,-219.09515972,0.00015,3]
[393792682,1762993829605,-167.42139141,0.00015,3]
[393792691,1762993831928,-292.9772869,0.00015,3]
[393792692,1762993832030,-195.0,0.00015,3]
[393792693,1762993832051,-21299.55821354,0.00015,3]
[393792694,1762993832063,-193.0,0.00016484,2]
[393792695,1762993832073,-172.67096414,0.00016484,2]
[393792696,1762993832086,-1680.0,0.00016499,2]
[393792697,1762993832097,-256831.5238983,0.0001679,2]
[393792698,1762993832108,-159.999999,0.00017,2]
[393792699,1762993832119,-228.12614804,0.00017899,2]
[393792700,1762993832130,-500.0,0.00017973,2]
[393792701,1762993832140,-501.05164124,0.00017973,2]
[393792702,1762993832149,-506.65983477,0.00017973,2]
[393792703,1762993832160,-500.0,0.00017973,2]
[393792705,1762993832170,-1001.67,0.00017989,2]
[393792707,1762993832183,-1001.67,0.0001799,2]
[393792709,1762993832192,-1001.67,0.0001799,2]
[393792710,1762993832201,-1001.67,0.0001799,2]
[393792712,1762993832211,-1001.67,0.0001799,2]
[393792715,1762993832220,-300.0,0.00017999,2]
[393792716,1762993832229,-57.97482053,0.00017999,2]
[393792718,1762993832239,-1042.30660055,0.00017999,2]
[393792720,1762993832249,-1042.30660055,0.00017999,2]
[393792722,1762993832260,-1042.30660055,0.00017999,2]
[393792725,1762993832270,-1018.42040763,0.00017999,2]
[393792726,1762993832279,-119.02808307,0.00017999,2]
[393792729,1762993832291,-899.39232456,0.00017999,2]
[393792731,1762993832300,-1018.42040763,0.00017999,2]
[393792733,1762993832309,-1018.42040763,0.00017999,2]
[393792734,1762993832319,-1018.42040763,0.00017999,2]
[393792736,1762993832329,-1018.42040763,0.00017999,2]
[393792754,1762993832500,-1018.42040763,0.00017999,2]
[393792756,1762993832511,-1018.42040763,0.00017999,2]
[393792758,1762993832521,-1018.42040763,0.00017999,2]
[393792760,1762993832530,-1018.42040763,0.00017999,2]
[393792762,1762993832539,-1018.42040763,0.00017999,2]
[393792764,1762993832549,-1018.42040763,0.00017999,2]
[393792766,1762993832558,-1018.42040763,0.00017999,2]
[393792768,1762993832567,-1018.42040763,0.00017999,2]
[393792770,1762993832577,-1018.42040763,0.00017999,2]
[393792772,1762993832587,-1018.42040763,0.00017999,2]
[393792774,1762993832597,-1018.42040763,0.00017999,2]
[393792776,1762993832606,-1018.42040763,0.00017999,2]
[393792778,1762993832617,-1018.42040763,0.00017999,2]
[393792780,1762993832628,-1018.42040763,0.00017999,2]
[393792782,1762993832637,-1018.42040763,0.00017999,2]
[393792784,1762993832647,-1018.42040763,0.00017999,2]
[393792786,1762993832656,-1131.57823066,0.00017999,2]
[393792788,1762993832666,-1131.57823066,0.00017999,2]
[393792790,1762993832675,-1131.57823066,0.00017999,2]
[393792792,1762993832684,-10285.88385595,0.00018,2]
[393792794,1762993832697,-38693.50000411,0.00018,2]
[393792797,1762993832718,-200676.76428659,0.00018,2]
[393792869,1762993837804,-228.12614801,0.0001792,2]
[393792870,1762993837815,-1192.69149738,0.00017949,2]
[393792871,1762993837824,-211.80327193,0.00018,2]
[393792872,1762993837836,-574.0,0.00018,2]
[393792873,1762993837848,-16210.30801114,0.00018,2]
[393792874,1762993837859,-400.0,0.00018,2]
[393792875,1762993837881,-638.55537377,0.00018,2]
[393792876,1762993837932,-1408.85446507,0.00018,2]
[393792877,1762993838002,-1319.6449995,0.00018,2]
[393792878,1762993838014,-2307.80385771,0.00018,2]
[393792879,1762993838029,-500.0,0.00018,2]
[393792880,1762993838041,-3609.41059738,0.00018,2]
[393792881,1762993838055,-145049.7718056,0.00018,2]
[393793014,1762993839947,-505188.08220877,0.00018,2]
[393793015,1762993840006,-2167334.57400055,0.00018,2]
[393793023,1762993841410,-1.7e-07,0.00018,2]
[393793024,1762993841472,-15880.69359251,0.00018,2]
[393793025,1762993841482,-6814799.76897566,0.00018,2]
[393793026,1762993841492,-1036.7577996,0.00018,2]
[393793027,1762993843286,-228.12614801,0.00017942,2]
[393793028,1762993843295,-277.13203453,0.00018,2]
[393793093,1762993846133,-369.62798886,0.00018,2]
[393793094,1762993846198,-349.87046341,0.00018,2]
[393793095,1762993846211,-308.52858885,0.00018,2]
[393793096,1762993846439,-598.44994,0.00018,2]
[393793097,1762993846451,-2197.96701332,0.00018,2]
[393793098,1762993846462,-375.33500001,0.00018,2]
[393793099,1762993846475,-706.82447489,0.00018,2]
[393793100,1762993846512,-42525.48737972,0.00018,2]
[393793101,1762993846527,-12591.55512295,0.00018,2]
[393793102,1762993846543,-26198.06134364,0.00018,2]
[393793103,1762993846555,-1230.25093517,0.00018,2]
[393793104,1762993846567,-9374.32267145,0.00018,2]
[393793164,1762993863418,500.0,0.000159,2]
[393793165,1762993863486,500.87217463,0.000159,2]
[393793166,1762993864145,500.0,0.000159,2]
[393793178,1762993925383,414.0,0.00040718,30]
[393793179,1762993925474,203.83164603,0.00040718,30]
[393793182,1762993926197,429.318,0.00040718,30]
[393793184,1762993926614,445.202766,0.00040718,30]
[393793186,1762993927276,445.202766,0.00040718,30]
[393793189,1762993927851,200.0,0.00040718,30]
[393793190,1762993927915,151.0,0.00040718,30]
[393793193,1762993928467,207.4,0.00040718,30]
[393793194,1762993928687,151.0,0.00040718,30]
[393793197,1762993929075,215.0738,0.00040718,30]
[393793199,1762993929687,215.0738,0.00040718,30]
[393793201,1762993929770,151.0,0.00040718,30]
[393793205,1762993930853,151.0,0.00040718,30]
[393793208,1762993931463,151.0,0.00040718,30]
[393793211,1762993932217,151.0,0.00040718,30]
[393793213,1762993932778,300.0,0.00040718,30]
[393793214,1762993933394,311.1,0.00040718,30]
[393793217,1762993934004,311.1,0.00040718,30]
[393793222,1762993936876,501.20828593,0.00040718,30]
[393793228,1762994402227,-217.060571,0.00017573,2]
[393793229,1762994407773,-250.0,0.00017662,2]
[393793230,1762994414989,-500.0,0.00017706,2]
[393793231,1762994415009,-329.23770299,0.00017768,2]
[393793232,1762994415034,-295.37305769,0.000178,2]
[393793233,1762994425748,-384.65,0.00017835,2]
[393793234,1762994425770,-295.37305767,0.0001785,2]
[393793235,1762994425791,-295.37305767,0.00017899,2]
[393793236,1762994425813,-300.0,0.00017899,2]
[393793237,1762994425835,-1200.0,0.00017899,2]
[393793238,1762994442923,-500.0,0.000179,2]
[393793239,1762994442945,-500.0,0.000179,2]
[393793240,1762994442965,-500.0,0.000179,2]
[393793241,1762994442988,-500.0,0.000179,2]
[393793242,1762994444068,-500.0,0.000179,2]
[393793243,1762994444090,-999.0,0.00017905,2]
[393793244,1762994444111,-299.0,0.00017972,2]
[393793245,1762994444132,-160.95119521,0.00017973,2]
[393793246,1762994444153,-41.04880479,0.00017973,2]
[393793247,1762994445228,-459.43644901,0.00017973,2]
[393793248,1762994445255,-346.48749089,0.00017973,2]
[393793249,1762994445276,-500.0,0.00017973,2]
[393793250,1762994445296,-500.0,0.00017973,2]
[393793251,1762994445318,-194.0760601,0.00017973,2]
[393793252,1762994446160,-305.9239399,0.00017973,2]
[393793253,1762994446181,-501.16873545,0.00017973,2]
[393793254,1762994446206,-506.58967554,0.00017973,2]
[393793255,1762994446232,-500.0,0.00017973,2]
[393793256,1762994446255,-186.31764911,0.00017973,2]
[393793257,1762994447251,-521.43235089,0.00017973,2]
[393793258,1762994447272,-500.0,0.00017999,2]
[393793259,1762994447294,-500.0,0.00017999,2]
[393793260,1762994447320,-478.56764911,0.00017999,2]
[393793261,1762994448510,-257.11235089,0.00017999,2]
[393793262,1762994448532,-735.68,0.00017999,2]
[393793263,1762994448553,-735.68,0.00017999,2]
[393793264,1762994448574,-271.52764911,0.00017999,2]
[393793265,1762994449807,-464.15235089,0.00017999,2]
[393793266,1762994449830,-735.68,0.00017999,2]
[393793267,1762994449853,-735.68,0.00017999,2]
[393793268,1762994449875,-64.48764911,0.00017999,2]
[393793269,1762994452606,-671.19235089,0.00017999,2]
[393793270,1762994452630,-735.68,0.00017999,2]
[393793271,1762994452652,-593.12764911,0.00017999,2]
[393793272,1762994454299,-142.55235089,0.00017999,2]
[393793273,1762994454325,-735.68,0.00017999,2]
[393793274,1762994454345,-735.68,0.00017999,2]
[393793275,1762994454367,-386.08764911,0.00017999,2]
[393793276,1762994456064,-349.59235089,0.00017999,2]
[393793277,1762994456085,-735.68,0.00017999,2]
[393793278,1762994456107,-735.68,0.00017999,2]
[393793279,1762994456132,-179.04764911,0.00017999,2]
[393793280,1762994457752,-556.63235089,0.00017999,2]
[393793281,1762994457776,-735.68,0.00017999,2]
[393793282,1762994457801,-707.68764911,0.00017999,2]
[393793284,1762994483378,-300.0,0.00017998,2]
[393793285,1762994483402,-27.99235089,0.00017999,2]
[393793286,1762994483426,-735.68,0.00017999,2]
[393793287,1762994483448,-735.68,0.00017999,2]
[393793288,1762994483471,-200.64764911,0.00017999,2]
[393793289,1762994484733,-535.03235089,0.00017999,2]
[393793290,1762994484755,-735.68,0.00017999,2]
[393793291,1762994484778,-729.28764911,0.00017999,2]
[393793292,1762994485625,-500.0,0.00017999,2]
[393793293,1762994485647,-300.0,0.00017999,2]
[393793294,1762994485668,-500.0,0.00017999,2]
[393793295,1762994485690,-500.0,0.00017999,2]
[393793296,1762994485711,-200.0,0.00017999,2]
[393793297,1762994486534,-300.0,0.00017999,2]
[393793298,1762994486555,-237.55008129,0.00017999,2]
[393793299,1762994486578,-500.0,0.00017999,2]
[393793300,1762994486599,-500.0,0.00017999,2]
[393793301,1762994486622,-462.44991871,0.00017999,2]
[393793302,1762994487561,-37.55008129,0.00017999,2]
[393793303,1762994487583,-311.50346792,0.00017999,2]
[393793304,1762994487603,-550.62677967,0.00017999,2]
[393793305,1762994487629,-500.0,0.00017999,2]
[393793306,1762994487650,-500.0,0.00017999,2]
[393793307,1762994487672,-100.31967112,0.00017999,2]
[393793312,1762994816143,-155.55640344,0.00017809,2]
[393793322,1762995032091,-250.0,0.00017,2]
[393793323,1762995032100,-300.0,0.00017898,2]
[393793324,1762995032109,-300.0,0.00017898,2]
[393793325,1762995032119,-1200.0,0.00017898,2]
[393793326,1762995032129,-23.00947096,0.00017899,2]
[393793327,1762995032140,-975.99052904,0.00017899,2]
[393793328,1762995032149,-187.0,0.00017899,2]
[393793329,1762995032158,-3767.85314233,0.000179,2]
[393793330,1762995032169,-926.7019046,0.000179,2]
[393793331,1762995032187,-3420.095732,0.000179,2]
[393793332,1762995032199,-1104.82449094,0.000179,2]
[393793333,1762995032211,-20260.78431006,0.000179,2]
[393793334,1762995032222,-221.45637082,0.000179,2]
[393793335,1762995032231,-346.48749089,0.00017973,2]
[393793336,1762995032241,-500.0,0.00017973,2]
[393793337,1762995032251,-500.4852538,0.00017973,2]
[393793338,1762995032262,-500.0,0.00017973,2]
[393793339,1762995032271,-501.16873545,0.00017973,2]
[393793340,1762995032283,-500.0,0.00017973,2]
[393793341,1762995032293,-506.58967554,0.00017973,2]
[393793342,1762995032303,-299.0,0.00017988,2]
[393793343,1762995032314,-151.0,0.00017989,2]
[393793344,1762995032323,-151.0,0.00017989,2]